[Event "New York Summer IM-C 2022"]
[Site "New York"]
[Date "2022.07.09"]
[Round "4.1"]
[White "Huston, Gus"]
[Black "Asavasaetakul, Chawit"]
[Result "1-0"]
[ECO "B19"]
[WhiteElo "2282"]
[BlackElo "1948"]
[Annotator "RC"]
[PlyCount "135"]
[EventDate "2022.07.08"]
[EventType "tourn"]
[EventCountry "USA"]
[SourceTitle "playchess.com"]
[Source "ChessBase"]
[SourceQuality "1"]
[TimeControl "5400+30"]

1. e4 {[%emt 0:00:07]} c6 {[%emt 0:00:04]} 2. d4 {[%emt 0:00:04]} d5 {[%emt 0:00:03]} 3. Nc3 {[%emt 0:00:04]} dxe4 {[%emt 0:00:06]} 4. Nxe4 {[%emt 0:00:02]} Bf5 {[%emt 0:00:08]} 5. Ng3 {[%emt 0:00:04]} Bg6 {[%emt 0:00:04]} 6. Nf3 {[%emt 0:00:21]} Nd7 {[%emt 0:00:20]} 7. h4 {[%emt 0:00:11]} h6 {[%emt 0:00:07]} 8. h5 {[%emt 0:00:01]} Bh7 {[%emt 0:00:07]} 9. Bd3 {[%emt 0:00:01]} Bxd3 {[%emt 0:00:08]} 10. Qxd3 {[%emt 0:00:04]} e6 {[%emt 0:00:09]} 11. Bf4 {[%emt 0:00:10]} Qa5+ {[%emt 0:00:31]} 12. Bd2 {[%emt 0:00:06]} Bb4 {[%emt 0:00:05]} 13. c3 {[%emt 0:00:59]} Be7 {[%emt 0:00:11]} 14. c4 {[%emt 0:02:42]} Qc7 {[%emt 0:00:06]} 15. Qe2 {[%emt 0:00:44]} Ngf6 {[%emt 0:03:31]} 16. Ne5 {[%emt 0:01:31]} O-O {[%emt 0:05:13]} 17. O-O {[%emt 0:09:42]} c5 {[%emt 0:05:53]} 18. Nxd7 {[%emt 0:01:40]} Qxd7 {[%emt 0:00:08]} 19. dxc5 {[%emt 0:00:55]} Bxc5 {[%emt 0:06:30]} 20. Bc3 {[%emt 0:01:46]} Bd4 {[%emt 0:16:39]} 21. Rad1 {[%emt 0:01:17]} e5 {[%emt 0:00:09]} 22. Qf3 {[%emt 0:11:30]} Qc6 {[%emt 0:11:21]} 23. Qxc6 {[%emt 0:00:37]} bxc6 {[%emt 0:00:04]} 24. Bxd4 {[%emt 0:00:08]} exd4 {[%emt 0:00:05]} 25. Rxd4 {[%emt 0:00:08]} Rfe8 {[%emt 0:04:25]} 26. Rd6 {[%emt 0:14:47]} c5 {[%emt 0:07:38]} 27. Rfd1 {[%emt 0:02:50]} Kf8 {[%emt 0:07:09]} 28. f3 {[%emt 0:03:49]} Re5 {[%emt 0:01:05]} 29. Rd8+ {[%emt 0:01:19]} Rxd8 {[%emt 0:00:12]} 30. Rxd8+ {[%emt 0:00:00]} Re8 {[%emt 0:04:23]} 31. Rxe8+ {[%emt 0:01:18]} Kxe8 {[%emt 0:00:51]} 32. Kf2 {[%emt 0:00:02]} Kd7 {[%emt 0:00:47]} 33. Ke3 {[%emt 0:00:08]} Ke6 {[%emt 0:01:00]} 34. Ne4 {[%emt 0:02:37]} Nd7 {[%emt 0:00:06]} 35. b3 {[%emt 0:01:06]} f5 {[%emt 0:01:37]} 36. Nf2 {[%emt 0:01:52]} Kf6 {[%emt 0:07:28]} 37. f4 {[%emt 0:02:05]} Ke6 {[%emt 0:01:10]} 38. Nd3 {[%emt 0:08:39]} Kd6 {[%emt 0:00:08]} 39. a3 {[%emt 0:02:31]} a5 {[%emt 0:01:47]} 40. b4 {[%emt 0:00:57]} cxb4 {[%emt 0:04:45]} 41. axb4 {[%emt 0:00:02]} axb4 {[%emt 0:03:53]} 42. Nxb4 {[%emt 0:00:10]} Nf6 {[%emt 0:04:46]} 43. Kd4 {[%emt 0:00:50]} Nxh5 {[%emt 0:00:58]} 44. c5+ {[%emt 0:01:13]} Ke6 {[%emt 0:00:39]} 45. Nd5 {[%emt 0:00:21]} g5 {[%emt 0:01:15]} 46. c6 {[%emt 0:00:50]} Kd6 {[%emt 0:00:43]} 47. c7 {[%emt 0:03:26]} Kd7 {[%emt 0:00:05]} 48. fxg5 {[%emt 0:03:50]} hxg5 {[%emt 0:00:06]} 49. Ke5 {[%emt 0:00:19]} Ng3 {[%emt 0:05:29]} 50. Kf6 {[%emt 0:00:10]} Ne4+ {[%emt 0:00:48]} 51. Kxf5 {[%emt 0:00:09]} Nd6+ {[%emt 0:00:02]} 52. Ke5 {[%emt 0:12:41]} g4 {[%emt 0:00:12]} 53. g3 {[%emt 0:00:01]} Nf7+ {[%emt 0:00:56]} 54. Kd4 {[%emt 0:00:22]} Nd6 {[%emt 0:00:43]} 55. Kc5 {[%emt 0:00:38]} Ne4+ {[%emt 0:00:35]} 56. Kb6 {[%emt 0:00:13]} Nd6 {[%emt 0:00:07]} 57. Nf6+ {[%emt 0:00:31]} Kc8 {[%emt 0:00:35]} 58. Kc6 {[%emt 0:04:11]} Nc4 {[%emt 0:00:26]} 59. Nd5 {[%emt 0:01:36]} Ne5+ {[%emt 0:00:10]} 60. Kd6 {[%emt 0:00:30]} Nc4+ {[%emt 0:00:55]} 61. Kc5 {[%emt 0:00:12]} Ne5 {[%emt 0:00:17]} 62. Kd6 {[%emt 0:02:14]} Nc4+ {[%emt 0:00:40]} 63. Ke6 {[%emt 0:00:02]} Nd2 {[%emt 0:00:15]} 64. Kf5 {[%emt 0:00:26]} Nc4 {[%emt 0:00:15]} 65. Kxg4 {[%emt 0:00:14]} Nd6 {[%emt 0:00:14]} 66. Kf4 {[%emt 0:00:12]} Kd7 {[%emt 0:00:22]} 67. Ke5 {[%emt 0:00:15]} Kc6 {[%emt 0:00:17]} 68. Ke6 {[%emt 0:00:11]} 1-0

[Event "New York Summer IM-C 2022"]
[Site "New York"]
[Date "2022.07.09"]
[Round "4.2"]
[White "Rozman, Levy"]
[Black "Martin Del Campo Cardenas, Roberto Abel"]
[Result "1-0"]
[ECO "A45"]
[WhiteElo "2333"]
[BlackElo "2245"]
[Annotator "RC"]
[PlyCount "83"]
[EventDate "2022.07.08"]
[EventType "tourn"]
[EventCountry "USA"]
[SourceTitle "playchess.com"]
[Source "ChessBase"]
[SourceQuality "1"]
[TimeControl "5400+30"]

1. d4 {[%emt 0:07:34]} Nf6 {[%emt 0:00:22]} 2. Bg5 {[%emt 0:00:37]} Ne4 {[%emt 0:00:28]} 3. Bf4 {[%emt 0:01:13]} c5 {[%emt 0:00:20]} 4. f3 {[%emt 0:01:21]} Qa5+ {[%emt 0:01:20]} 5. c3 {[%emt 0:00:17]} Nf6 {[%emt 0:00:07]} 6. d5 {[%emt 0:00:32]} d6 {[%emt 0:07:40]} 7. e4 {[%emt 0:05:10]} g6 {[%emt 0:01:01]} 8. Qd2 {[%emt 0:05:04]} b5 {[%emt 0:29:10]} 9. a4 {[%emt 0:09:48]} bxa4 {[%emt 0:04:47]} 10. Na3 {[%emt 0:03:10]} Ba6 {[%emt 0:03:34]} 11. Nc4 {[%emt 0:09:08]} Bxc4 {[%emt 0:00:53]} 12. Bxc4 {[%emt 0:00:05]} Nbd7 {[%emt 0:00:28]} 13. Ne2 {[%emt 0:03:44]} Bg7 {[%emt 0:02:48]} 14. b3 {[%emt 0:08:28]} Nb6 {[%emt 0:01:53]} 15. Bd3 {[%emt 0:00:15]} c4 {[%emt 0:06:31]} 16. b4 {[%emt 0:00:31]} Qb5 {[%emt 0:01:08]} 17. Bc2 {[%emt 0:02:34]} O-O {[%emt 0:03:35]} 18. O-O {[%emt 0:03:35]} Qd7 {[%emt 0:02:14]} 19. Be3 {[%emt 0:06:43]} e6 {[%emt 0:04:14]} 20. dxe6 {[%emt 0:02:47]} fxe6 {[%emt 0:00:03]} 21. Qd1 {[%emt 0:01:35]} Qc7 {[%emt 0:01:36]} 22. Nd4 {[%emt 0:05:35]} Rfe8 {[%emt 0:05:45]} 23. Nb5 {[%emt 0:01:08]} Qc6 {[%emt 0:01:00]} 24. Bxa4 {[%emt 0:03:18]} Nxa4 {[%emt 0:04:34]} 25. Qxa4 {[%emt 0:00:06]} a6 {[%emt 0:00:40]} 26. Na7 {[%emt 0:01:06]} Qxa4 {[%emt 0:06:27]} 27. Rxa4 {[%emt 0:00:02]} Nd7 {[%emt 0:00:11]} 28. Rxa6 {[%emt 0:00:55]} Bxc3 {[%emt 0:00:48]} 29. Rxd6 {[%emt 0:00:22]} Ne5 {[%emt 0:00:34]} 30. Rb1 {[%emt 0:07:24]} Rab8 {[%emt 0:03:19]} 31. b5 {[%emt 0:00:11]} Rb7 {[%emt 0:04:27]} 32. Ra6 {[%emt 0:00:50]} Nd3 {[%emt 0:00:43]} 33. Ra4 {[%emt 0:01:22]} Nb2 {[%emt 0:02:43]} 34. Ra2 {[%emt 0:00:39]} Ra8 {[%emt 0:00:14]} 35. b6 {[%emt 0:00:58]} Nd3 {[%emt 0:02:23]} 36. Rc2 {[%emt 0:01:14]} Ba5 {[%emt 0:00:00]} 37. h4 {[%emt 0:04:38]} Raxa7 {[%emt 0:00:08]} 38. bxa7 {[%emt 0:00:05]} Rxb1+ {[%emt 0:00:01]} 39. Kh2 {[%emt 0:00:07]} Bc7+ {[%emt 0:00:01]} 40. g3 {[%emt 0:00:18]} Ra1 {[%emt 0:00:03]} 41. Rxc4 {[%emt 0:00:12]} Bd6 {[%emt 0:01:16]} 42. Rc8+ {[%emt 0:00:19]} 1-0

[Event "New York Summer IM-C 2022"]
[Site "New York"]
[Date "2022.07.09"]
[Round "4.3"]
[White "Poliannikov, Danila"]
[Black "Nakada, Akira"]
[Result "1/2-1/2"]
[ECO "B11"]
[WhiteElo "2309"]
[BlackElo "2297"]
[Annotator "RC"]
[PlyCount "57"]
[EventDate "2022.07.08"]
[EventType "tourn"]
[EventCountry "USA"]
[SourceTitle "playchess.com"]
[Source "ChessBase"]
[SourceQuality "1"]
[TimeControl "5400+30"]

1. e4 {[%emt 0:00:02]} c6 {[%emt 0:00:08]} 2. Nc3 {[%emt 0:00:03]} d5 {[%emt 0:00:06]} 3. Nf3 {[%emt 0:00:02]} dxe4 {[%emt 0:00:10]} 4. Nxe4 {[%emt 0:00:03]} Nf6 {[%emt 0:00:11]} 5. Qe2 {[%emt 0:00:03]} Nxe4 {[%emt 0:00:06]} 6. Qxe4 {[%emt 0:00:03]} Nd7 {[%emt 0:00:09]} 7. d4 {[%emt 0:00:03]} Nf6 {[%emt 0:00:41]} 8. Qf4 {[%emt 0:00:03]} Qa5+ {[%emt 0:04:22]} 9. Bd2 {[%emt 0:02:16]} Qf5 {[%emt 0:01:49]} 10. Bd3 {[%emt 0:01:19]} Qxf4 {[%emt 0:00:08]} 11. Bxf4 {[%emt 0:00:03]} e6 {[%emt 0:16:28]} 12. c4 {[%emt 0:19:42]} c5 {[%emt 0:06:34]} 13. O-O-O {[%emt 0:15:30]} cxd4 {[%emt 0:00:59]} 14. Nxd4 {[%emt 0:00:53]} Bd7 {[%emt 0:02:05]} 15. f3 {[%emt 0:03:08]} Rc8 {[%emt 0:08:40]} 16. Kb1 {[%emt 0:00:40]} Bc5 {[%emt 0:06:47]} 17. Nb3 {[%emt 0:11:17]} Be7 {[%emt 0:00:25]} 18. g4 {[%emt 0:05:13]} Ba4 {[%emt 0:02:50]} 19. Rc1 {[%emt 0:13:50]} O-O {[%emt 0:02:12]} 20. Be2 {[%emt 0:02:37]} Bxb3 {[%emt 0:04:03]} 21. axb3 {[%emt 0:00:04]} a5 {[%emt 0:02:03]} 22. Rhd1 {[%emt 0:00:32]} Rfd8 {[%emt 0:00:03]} 23. Rxd8+ {[%emt 0:02:36]} Rxd8 {[%emt 0:00:06]} 24. Bc7 {[%emt 0:00:32]} Rd2 {[%emt 0:00:31]} 25. Rc2 {[%emt 0:00:05]} Rxc2 {[%emt 0:00:39]} 26. Kxc2 {[%emt 0:00:03]} Bb4 {[%emt 0:00:04]} 27. f4 {[%emt 0:00:29]} Nd7 {[%emt 0:01:55]} 28. Bf3 {[%emt 0:02:13]} Nc5 {[%emt 0:00:08]} 29. Bb6 {[%emt 0:05:54]} 1/2-1/2

[Event "New York Summer IM-C 2022"]
[Site "New York"]
[Date "2022.07.09"]
[Round "4.4"]
[White "Bortnyk, Mykola"]
[Black "Adewumi, Tanitoluwa"]
[Result "1/2-1/2"]
[ECO "B22"]
[WhiteElo "2463"]
[BlackElo "2309"]
[Annotator "RC"]
[PlyCount "90"]
[EventDate "2022.07.08"]
[EventType "tourn"]
[EventCountry "USA"]
[SourceTitle "playchess.com"]
[Source "ChessBase"]
[SourceQuality "1"]
[TimeControl "5400+30"]

1. e4 {[%emt 0:00:17]} c5 {[%emt 0:00:26]} 2. c3 {[%emt 0:00:07]} Nc6 {[%emt 0:00:05]} 3. d4 {[%emt 0:00:18]} cxd4 {[%emt 0:00:35]} 4. cxd4 d5 {[%emt 0:00:13]} 5. exd5 {[%emt 0:00:18]} Qxd5 {[%emt 0:00:11]} 6. Nf3 {[%emt 0:00:03]} Bg4 {[%emt 0:00:19]} 7. Be2 {[%emt 0:00:03]} Rd8 {[%emt 0:00:46]} 8. Nc3 {[%emt 0:00:45]} Qa5 {[%emt 0:01:11]} 9. b4 {[%emt 0:07:47]} Qxb4 {[%emt 0:06:03]} 10. Bd2 {[%emt 0:01:34]} Bxf3 {[%emt 0:04:27]} 11. Bxf3 {[%emt 0:00:04]} Qxd4 {[%emt 0:01:12]} 12. Rb1 {[%emt 0:01:52]} Ne5 {[%emt 0:01:25]} 13. O-O {[%emt 0:03:05]} e6 {[%emt 0:14:12]} 14. Rxb7 {[%emt 0:03:42]} Bc5 {[%emt 0:08:41]} 15. Qe2 {[%emt 0:06:48]} Nf6 {[%emt 0:04:11]} 16. Be3 {[%emt 0:10:54]} Qxc3 {[%emt 0:01:43]} 17. Rc1 {[%emt 0:00:03]} Nxf3+ {[%emt 0:05:33]} 18. Qxf3 {[%emt 0:00:53]} Qxc1+ {[%emt 0:00:20]} 19. Bxc1 {[%emt 0:00:02]} O-O {[%emt 0:00:19]} 20. Be3 {[%emt 0:00:53]} Bxe3 {[%emt 0:00:20]} 21. fxe3 {[%emt 0:00:03]} a5 {[%emt 0:01:10]} 22. Rb5 {[%emt 0:02:24]} Rd5 {[%emt 0:03:05]} 23. Rxd5 {[%emt 0:00:10]} exd5 {[%emt 0:00:09]} 24. Qf4 {[%emt 0:00:44]} Rc8 {[%emt 0:00:56]} 25. h3 {[%emt 0:00:59]} h5 {[%emt 0:00:06]} 26. Kh2 {[%emt 0:00:30]} Rc4 {[%emt 0:00:11]} 27. Qb8+ {[%emt 0:00:38]} Kh7 {[%emt 0:00:46]} 28. Qa7 {[%emt 0:00:08]} Ra4 {[%emt 0:00:26]} 29. Qb7 {[%emt 0:01:14]} Kh6 {[%emt 0:02:59]} 30. Qb3 {[%emt 0:02:29]} Re4 {[%emt 0:01:06]} 31. a4 {[%emt 0:00:02]} Rb4 {[%emt 0:01:10]} 32. Qc2 {[%emt 0:00:02]} h4 {[%emt 0:02:24]} 33. g3 {[%emt 0:04:10]} hxg3+ {[%emt 0:00:35]} 34. Kxg3 {[%emt 0:00:02]} Rc4 {[%emt 0:01:00]} 35. Qd1 {[%emt 0:03:22]} g6 {[%emt 0:04:26]} 36. Kg2 {[%emt 0:00:13]} Kg7 {[%emt 0:00:12]} 37. Qa1 {[%emt 0:00:02]} Re4 {[%emt 0:00:32]} 38. Kf2 {[%emt 0:00:10]} Rh4 {[%emt 0:00:22]} 39. Ke2 {[%emt 0:00:10]} Re4 {[%emt 0:02:56]} 40. Kd2 {[%emt 0:00:29]} Rc4 {[%emt 0:00:19]} 41. Kd3 {[%emt 0:00:08]} Rb4 {[%emt 0:00:16]} 42. Kc2 {[%emt 0:00:07]} Re4 {[%emt 0:00:41]} 43. Kd3 {[%emt 0:04:00]} Rb4 {[%emt 0:00:33]} 44. Qa2 {[%emt 0:00:02]} Rc4 {[%emt 0:01:57]} 45. Qa1 {[%emt 0:07:02]} Rb4 {[%emt 0:00:00]} 1/2-1/2

[Event "New York Summer IM-C 2022"]
[Site "New York"]
[Date "2022.07.09"]
[Round "4.5"]
[White "Le, Nguyen Khoi Nguyen"]
[Black "Hardaway, Brewington"]
[Result "1/2-1/2"]
[ECO "B41"]
[WhiteElo "2001"]
[BlackElo "2175"]
[Annotator "RC"]
[PlyCount "111"]
[EventDate "2022.07.08"]
[EventType "tourn"]
[EventCountry "USA"]
[SourceTitle "playchess.com"]
[Source "ChessBase"]
[SourceQuality "1"]
[TimeControl "5400+30"]

1. e4 {[%emt 0:06:04]} c5 {[%emt 0:00:04]} 2. Nf3 {[%emt 0:00:03]} e6 {[%emt 0:00:05]} 3. d4 {[%emt 0:00:01]} cxd4 {[%emt 0:00:00]} 4. Nxd4 {[%emt 0:00:02]} a6 {[%emt 0:00:01]} 5. c4 {[%emt 0:00:01]} Nf6 {[%emt 0:00:23]} 6. Nc3 {[%emt 0:00:02]} Qc7 {[%emt 0:00:09]} 7. Qd3 {[%emt 0:01:05]} Bb4 {[%emt 0:04:43]} 8. Nc2 {[%emt 0:00:35]} Be7 {[%emt 0:03:28]} 9. Qg3 {[%emt 0:00:23]} Qxg3 {[%emt 0:00:08]} 10. hxg3 {[%emt 0:00:01]} Nc6 {[%emt 0:01:57]} 11. Be2 {[%emt 0:01:06]} O-O {[%emt 0:29:33]} 12. Be3 {[%emt 0:00:18]} d6 {[%emt 0:06:29]} 13. O-O-O {[%emt 0:02:51]} h6 {[%emt 0:18:16]} 14. f4 {[%emt 0:05:47]} Nh7 {[%emt 0:04:17]} 15. Bb6 {[%emt 0:02:20]} Nf6 {[%emt 0:02:52]} 16. g4 {[%emt 0:04:25]} e5 {[%emt 0:04:25]} 17. f5 {[%emt 0:00:19]} Bd7 {[%emt 0:01:17]} 18. Be3 {[%emt 0:01:54]} Rfc8 {[%emt 0:05:19]} 19. g5 {[%emt 0:02:45]} hxg5 {[%emt 0:00:06]} 20. Bxg5 {[%emt 0:00:17]} Nd5 {[%emt 0:00:24]} 21. Nxd5 {[%emt 0:03:06]} Bxg5+ {[%emt 0:00:01]} 22. Kb1 {[%emt 0:00:00]} Ne7 {[%emt 0:03:43]} 23. Nb6 {[%emt 0:01:44]} Bc6 {[%emt 0:00:04]} 24. Nxa8 Rxa8 {[%emt 0:00:02]} 25. Bf3 {[%emt 0:02:16]} Rd8 {[%emt 0:00:57]} 26. Rh5 {[%emt 0:14:17]} f6 {[%emt 0:00:11]} 27. g4 {[%emt 0:02:14]} a5 {[%emt 0:03:40]} 28. Rh3 {[%emt 0:01:59]} Kf7 {[%emt 0:00:55]} 29. b3 {[%emt 0:00:39]} b6 {[%emt 0:00:31]} 30. a3 {[%emt 0:01:05]} Rd7 {[%emt 0:01:22]} 31. Kb2 {[%emt 0:00:39]} Rd8 {[%emt 0:00:18]} 32. Bg2 {[%emt 0:00:40]} Rd7 {[%emt 0:02:11]} 33. b4 {[%emt 0:02:15]} Ba4 {[%emt 0:01:02]} 34. Bf1 {[%emt 0:06:07]} Nc6 {[%emt 0:00:18]} 35. c5 {[%emt 0:20:16]} bxc5 {[%emt 0:02:41]} 36. Bc4+ {[%emt 0:00:05]} Ke7 {[%emt 0:00:33]} 37. bxc5 {[%emt 0:04:04]} dxc5 {[%emt 0:03:52]} 38. Rxd7+ {[%emt 0:00:11]} Kxd7 {[%emt 0:00:04]} 39. Rh7 {[%emt 0:01:28]} Bh6 {[%emt 0:00:01]} 40. g5 {[%emt 0:08:16]} Bxg5 {[%emt 0:00:01]} 41. Rxg7+ {[%emt 0:00:01]} Kd6 {[%emt 0:01:13]} 42. Ne1 {[%emt 0:00:14]} Nd4 {[%emt 0:00:30]} 43. Kc3 {[%emt 0:03:42]} Bh4 {[%emt 0:01:34]} 44. Ng2 {[%emt 0:00:38]} Bg5 {[%emt 0:00:00]} 45. Ra7 {[%emt 0:00:37]} Nc6 {[%emt 0:00:24]} 46. Rf7 {[%emt 0:00:21]} Nd4 {[%emt 0:00:27]} 47. Bd3 {[%emt 0:01:05]} Bd7 {[%emt 0:01:10]} 48. Rh7 {[%emt 0:00:27]} Bc6 {[%emt 0:00:45]} 49. Nh4 {[%emt 0:01:14]} c4 {[%emt 0:00:24]} 50. Bxc4 {[%emt 0:03:11]} Bxe4 {[%emt 0:00:04]} 51. Bd3 {[%emt 0:00:14]} Bxd3 {[%emt 0:00:25]} 52. Kxd3 {[%emt 0:00:02]} Kd5 {[%emt 0:00:05]} 53. Rd7+ {[%emt 0:00:39]} Kc6 {[%emt 0:00:04]} 54. Rh7 {[%emt 0:00:29]} Kd5 {[%emt 0:00:23]} 55. Rd7+ {[%emt 0:00:43]} Kc6 {[%emt 0:00:52]} 56. Rh7 {[%emt 0:00:06]} 1/2-1/2

[Event "New York Summer IM-C 2022"]
[Site "New York"]
[Date "2022.07.10"]
[Round "5.1"]
[White "Hardaway, Brewington"]
[Black "Huston, Gus"]
[Result "0-1"]
[ECO "C50"]
[WhiteElo "2175"]
[BlackElo "2282"]
[Annotator "RC"]
[PlyCount "66"]
[EventDate "2022.07.08"]
[EventType "tourn"]
[EventCountry "USA"]
[SourceTitle "playchess.com"]
[Source "ChessBase"]
[SourceQuality "1"]
[TimeControl "5400+30"]

1. e4 {[%emt 0:00:06]} e5 {[%emt 0:00:20]} 2. Nf3 {[%emt 0:00:08]} Nc6 {[%emt 0:00:04]} 3. Bc4 {[%emt 0:00:04]} Bc5 {[%emt 0:00:05]} 4. d3 {[%emt 0:00:05]} Nf6 {[%emt 0:01:35]} 5. O-O {[%emt 0:00:19]} d6 {[%emt 0:00:15]} 6. Bg5 {[%emt 0:00:15]} h6 {[%emt 0:00:17]} 7. Bh4 {[%emt 0:00:01]} Na5 {[%emt 0:02:54]} 8. Nbd2 {[%emt 0:02:52]} Nxc4 {[%emt 0:07:58]} 9. Nxc4 {[%emt 0:00:07]} Be6 {[%emt 0:03:48]} 10. Ne3 {[%emt 0:00:18]} g5 {[%emt 0:07:46]} 11. Bg3 {[%emt 0:00:01]} a6 {[%emt 0:02:16]} 12. c3 {[%emt 0:03:23]} Ba7 {[%emt 0:00:17]} 13. Qc2 {[%emt 0:01:52]} Nh5 {[%emt 0:05:34]} 14. d4 {[%emt 0:08:59]} f6 {[%emt 0:02:48]} 15. Rfd1 {[%emt 0:04:46]} Qe7 {[%emt 0:00:29]} 16. b4 {[%emt 0:01:13]} O-O {[%emt 0:07:27]} 17. c4 {[%emt 0:08:58]} a5 {[%emt 0:05:16]} 18. b5 {[%emt 0:14:20]} Qf7 {[%emt 0:07:10]} 19. Rac1 {[%emt 0:18:48]} Ng7 {[%emt 0:08:05]} 20. h3 {[%emt 0:05:52]} f5 {[%emt 0:10:01]} 21. exf5 {[%emt 0:00:25]} Nxf5 {[%emt 0:03:14]} 22. Nxf5 {[%emt 0:05:39]} Bxf5 {[%emt 0:00:33]} 23. Qc3 {[%emt 0:00:23]} exd4 {[%emt 0:03:13]} 24. Nxd4 {[%emt 0:00:20]} Bg6 {[%emt 0:01:55]} 25. h4 {[%emt 0:02:06]} Qf6 {[%emt 0:01:09]} 26. hxg5 {[%emt 0:00:34]} hxg5 {[%emt 0:00:02]} 27. Qf3 {[%emt 0:00:37]} Qxd4 {[%emt 0:00:47]} 28. Qxb7 {[%emt 0:00:37]} Qf6 {[%emt 0:03:06]} 29. Rd2 {[%emt 0:00:25]} Qf7 {[%emt 0:01:13]} 30. a4 {[%emt 0:00:38]} Bc5 {[%emt 0:00:56]} 31. Rf1 {[%emt 0:01:17]} Rae8 {[%emt 0:01:07]} 32. Rd5 {[%emt 0:00:23]} Be4 {[%emt 0:01:19]} 33. Rxg5+ {[%emt 0:00:10]} Kh7 {[%emt 0:00:08]} 0-1

[Event "New York Summer IM-C 2022"]
[Site "New York"]
[Date "2022.07.10"]
[Round "5.2"]
[White "Adewumi, Tanitoluwa"]
[Black "Le, Nguyen Khoi Nguyen"]
[Result "1-0"]
[ECO "B51"]
[WhiteElo "2309"]
[BlackElo "2001"]
[Annotator "RC"]
[PlyCount "47"]
[EventDate "2022.07.08"]
[EventType "tourn"]
[EventCountry "USA"]
[SourceTitle "playchess.com"]
[Source "ChessBase"]
[SourceQuality "1"]
[TimeControl "5400+30"]

1. e4 {[%emt 0:00:07]} c5 {[%emt 0:01:33]} 2. Nf3 {[%emt 0:00:11]} d6 {[%emt 0:00:02]} 3. Bb5+ {[%emt 0:00:09]} Nd7 {[%emt 0:00:07]} 4. c3 {[%emt 0:00:18]} Ngf6 {[%emt 0:00:04]} 5. Bd3 {[%emt 0:00:22]} Ne5 {[%emt 0:00:01]} 6. Be2 {[%emt 0:00:25]} Ng6 {[%emt 0:00:02]} 7. h4 {[%emt 0:00:19]} e6 {[%emt 0:00:03]} 8. h5 {[%emt 0:00:38]} Ne7 {[%emt 0:00:01]} 9. d3 {[%emt 0:01:03]} h6 {[%emt 0:00:53]} 10. Be3 {[%emt 0:00:20]} Qc7 {[%emt 0:01:03]} 11. Nbd2 {[%emt 0:00:49]} Bd7 {[%emt 0:03:38]} 12. Rc1 {[%emt 0:01:10]} Bc6 {[%emt 0:01:57]} 13. b4 {[%emt 0:01:23]} b6 {[%emt 0:01:22]} 14. Qc2 {[%emt 0:02:05]} Qb7 {[%emt 0:12:20]} 15. Nc4 {[%emt 0:01:01]} Nc8 {[%emt 0:07:25]} 16. bxc5 {[%emt 0:06:23]} d5 {[%emt 0:01:44]} 17. exd5 {[%emt 0:01:57]} exd5 {[%emt 0:00:08]} 18. Nce5 {[%emt 0:01:19]} bxc5 {[%emt 0:00:17]} 19. Rb1 {[%emt 0:00:31]} Qc7 {[%emt 0:00:55]} 20. Nxc6 {[%emt 0:00:59]} Qxc6 {[%emt 0:00:15]} 21. Ne5 {[%emt 0:00:14]} Qa6 {[%emt 0:02:12]} 22. d4 {[%emt 0:02:08]} c4 {[%emt 0:00:28]} 23. Nxc4 {[%emt 0:02:00]} dxc4 {[%emt 0:00:09]} 24. Bf3 {[%emt 0:00:09]} 1-0

[Event "New York Summer IM-C 2022"]
[Site "New York"]
[Date "2022.07.10"]
[Round "5.3"]
[White "Nakada, Akira"]
[Black "Bortnyk, Mykola"]
[Result "1/2-1/2"]
[ECO "D45"]
[WhiteElo "2297"]
[BlackElo "2463"]
[Annotator "RC"]
[PlyCount "134"]
[EventDate "2022.07.08"]
[EventType "tourn"]
[EventCountry "USA"]
[SourceTitle "playchess.com"]
[Source "ChessBase"]
[SourceQuality "1"]
[TimeControl "5400+30"]

1. c4 {[%emt 0:00:50]} c6 {[%emt 0:00:53]} 2. Nf3 {[%emt 0:00:59]} d5 {[%emt 0:00:18]} 3. e3 {[%emt 0:00:38]} Nf6 {[%emt 0:00:28]} 4. Nc3 {[%emt 0:00:06]} Nbd7 {[%emt 0:01:19]} 5. d4 {[%emt 0:03:39]} e6 {[%emt 0:00:10]} 6. Qc2 {[%emt 0:00:12]} Bd6 {[%emt 0:00:19]} 7. b3 {[%emt 0:00:59]} O-O {[%emt 0:00:44]} 8. Bb2 {[%emt 0:00:03]} Re8 {[%emt 0:01:55]} 9. Be2 {[%emt 0:00:25]} dxc4 {[%emt 0:01:02]} 10. bxc4 {[%emt 0:00:04]} e5 {[%emt 0:00:06]} 11. O-O {[%emt 0:00:06]} exd4 {[%emt 0:01:31]} 12. exd4 {[%emt 0:00:55]} Nf8 {[%emt 0:01:36]} 13. h3 {[%emt 0:05:00]} Ng6 {[%emt 0:02:34]} 14. Rfe1 {[%emt 0:00:45]} Be6 {[%emt 0:04:07]} 15. Ng5 {[%emt 0:08:35]} Bd7 {[%emt 0:05:18]} 16. Bd3 {[%emt 0:01:11]} Qc7 {[%emt 0:10:45]} 17. Nce4 {[%emt 0:10:06]} Nxe4 {[%emt 0:00:39]} 18. Nxe4 {[%emt 0:00:59]} Bb4 {[%emt 0:00:19]} 19. Re3 {[%emt 0:00:09]} f5 {[%emt 0:03:08]} 20. Nd2 {[%emt 0:03:58]} Rxe3 {[%emt 0:02:34]} 21. fxe3 {[%emt 0:00:03]} Re8 {[%emt 0:00:24]} 22. Nf1 {[%emt 0:02:04]} f4 {[%emt 0:00:22]} 23. c5 {[%emt 0:04:54]} Ba5 {[%emt 0:00:45]} 24. Bxg6 {[%emt 0:07:04]} hxg6 {[%emt 0:00:03]} 25. Qxg6 {[%emt 0:00:34]} Rf8 {[%emt 0:04:54]} 26. e4 {[%emt 0:00:16]} f3 {[%emt 0:01:00]} 27. d5 {[%emt 0:02:12]} f2+ {[%emt 0:00:12]} 28. Kh1 {[%emt 0:00:04]} Be8 {[%emt 0:00:05]} 29. Qg5 {[%emt 0:06:20]} cxd5 {[%emt 0:01:15]} 30. exd5 {[%emt 0:00:01]} Bb5 {[%emt 0:01:46]} 31. c6 {[%emt 0:09:45]} bxc6 {[%emt 0:03:10]} 32. dxc6 {[%emt 0:00:07]} Be2 {[%emt 0:02:24]} 33. Qd5+ {[%emt 0:05:31]} Rf7 {[%emt 0:00:43]} 34. Be5 {[%emt 0:05:02]} Qd8 {[%emt 0:03:41]} 35. Qxd8+ {[%emt 0:00:14]} Bxd8 {[%emt 0:00:02]} 36. Rc1 {[%emt 0:00:23]} Bc7 {[%emt 0:01:50]} 37. Bxc7 {[%emt 0:00:23]} Rxc7 {[%emt 0:00:02]} 38. Kh2 {[%emt 0:02:21]} Bxf1 {[%emt 0:02:19]} 39. Rxf1 {[%emt 0:00:06]} Rxc6 {[%emt 0:00:05]} 40. Rxf2 {[%emt 0:00:04]} Ra6 {[%emt 0:00:21]} 41. Kg3 {[%emt 0:01:14]} Ra4 {[%emt 0:00:19]} 42. Kf3 {[%emt 0:00:22]} Kf7 {[%emt 0:00:07]} 43. Ke3+ {[%emt 0:00:08]} Ke6 {[%emt 0:00:09]} 44. Kd3 {[%emt 0:00:05]} g5 {[%emt 0:01:04]} 45. Rb2 {[%emt 0:05:02]} g4 {[%emt 0:00:29]} 46. hxg4 {[%emt 0:00:11]} Rxg4 {[%emt 0:00:03]} 47. Ke3 {[%emt 0:00:10]} Ra4 {[%emt 0:00:10]} 48. Kf3 {[%emt 0:00:06]} Kf5 {[%emt 0:00:07]} 49. Kg3 {[%emt 0:02:17]} Kg5 {[%emt 0:00:02]} 50. Kh3 {[%emt 0:00:30]} Rh4+ {[%emt 0:00:02]} 51. Kg3 {[%emt 0:00:04]} Ra4 {[%emt 0:00:04]} 52. Rc2 {[%emt 0:00:38]} Rg4+ {[%emt 0:00:41]} 53. Kf3 {[%emt 0:00:15]} Ra4 {[%emt 0:00:06]} 54. Rd2 {[%emt 0:01:27]} Kf5 {[%emt 0:00:10]} 55. Kg3 {[%emt 0:00:20]} Kg5 {[%emt 0:00:09]} 56. Rf2 {[%emt 0:00:38]} Ra3+ {[%emt 0:00:08]} 57. Kh2 {[%emt 0:00:04]} Kg4 {[%emt 0:00:05]} 58. Rb2 {[%emt 0:00:41]} Ra4 {[%emt 0:00:06]} 59. Kg1 {[%emt 0:00:06]} Kf4 {[%emt 0:01:03]} 60. Kf2 {[%emt 0:00:07]} Ra3 {[%emt 0:00:10]} 61. Ke2 {[%emt 0:01:41]} Ke4 {[%emt 0:00:10]} 62. Kd2 {[%emt 0:00:44]} Rg3 {[%emt 0:00:20]} 63. Kc1 {[%emt 0:00:16]} Rc3+ {[%emt 0:00:50]} 64. Rc2 {[%emt 0:00:16]} Rg3 {[%emt 0:00:01]} 65. Rd2 {[%emt 0:00:16]} Rc3+ {[%emt 0:00:07]} 66. Kb2 {[%emt 0:00:23]} Rg3 {[%emt 0:00:02]} 67. a4 {[%emt 0:18:52]} a5 {[%emt 0:00:18]} 1/2-1/2